[Event "DVM U12w 2023"]
[Site "Magdeburg"]
[Date "2023.12.28"]
[Round "3"]
[White "Weißleder, Emia"]
[Black "Ramien, Eva"]
[Result "0-1"]
[WhiteElo "1041"]
[BlackElo "1324"]
[PlyCount "70"]
[EventDate "2022.12.27"]
[EventType "team-tourn"]
[EventRounds "7"]
[EventCountry "GER"]
[TimeControl "40/5400+30:1800+30"]

1. d4 {[%emt 0:00:01]} d5 {[%emt 0:00:07]} 2. Nc3 {[%emt 0:00:08]} Nf6 {[%emt 0:00:11]} 3. Bf4 {[%emt 0:00:07]} c5 {[%emt 0:02:02]} 4. e3 {[%emt 0:02:59]} cxd4 {[%emt 0:02:14]} 5. exd4 {[%emt 0:01:59]} Nc6 {[%emt 0:00:23]} 6. Qd2 {[%emt 0:02:26]} Qb6 {[%emt 0:02:05]} 7. Nf3 {[%emt 0:03:38]} e6 {[%emt 0:00:43]} 8. O-O-O {[%emt 0:02:23]} Bb4 {[%emt 0:01:01]} 9. a3 {[%emt 0:04:09]} Ne4 {[%emt 0:00:10]} 10. Qe3 {[%emt 0:01:25]} Nxc3 {[%emt 0:00:34]} 11. bxc3 {[%emt 0:00:29]} Bxa3+ {[%emt 0:00:10]} 12. Kd2 {[%emt 0:00:34]} h6 {[%emt 0:03:58]} 13. Bd3 {[%emt 0:03:55]} Qd8 {[%emt 0:01:02]} 14. Be5 {[%emt 0:04:15]} f6 {[%emt 0:04:26]} 15. Bg6+ {[%emt 0:02:38]} Kf8 {[%emt 0:00:29]} 16. Bg3 {[%emt 0:02:33]} Ne7 {[%emt 0:01:13]} 17. Qd3 {[%emt 0:01:27]} f5 {[%emt 0:01:45]} 18. Ne5 {[%emt 0:01:20]} Rg8 {[%emt 0:03:28]} 19. Qb5 {[%emt 0:09:05]} Nxg6 {[%emt 0:00:56]} 20. Nxg6+ {[%emt 0:00:12]} Kf7 {[%emt 0:00:18]} 21. Ne5+ {[%emt 0:01:29]} Kf6 {[%emt 0:01:30]} 22. Bh4+ {[%emt 0:00:10]} g5 {[%emt 0:00:09]} 23. Qe2 {[%emt 0:02:16]} gxh4 {[%emt 0:01:45]} 24. Qh5 {[%emt 0:00:27]} Qf8 {[%emt 0:00:40]} 25. Qxh4+ {[%emt 0:01:23]} Kg7 {[%emt 0:00:30]} 26. Rhe1 {[%emt 0:02:03]} Be7 {[%emt 0:01:27]} 27. Qf4 {[%emt 0:01:18]} Bg5 {[%emt 0:00:13]} 28. Qxg5+ {[%emt 0:00:52]} hxg5 {[%emt 0:00:09]} 29. Re3 {[%emt 0:00:16]} Kf6 {[%emt 0:00:46]} 30. Rb1 {[%emt 0:00:26]} b6 {[%emt 0:00:34]} 31. Rf3 {[%emt 0:00:47]} g4 {[%emt 0:00:47]} 32. Nxg4+ {[%emt 0:00:19]} Rxg4 {[%emt 0:00:42]} 33. h3 {[%emt 0:00:00]} Rxg2 {[%emt 0:00:00]} 34. h4 {[%emt 0:01:14]} Qh6+ {[%emt 0:00:00]} 35. Ke2 {[%emt 0:00:07]} Ba6+ {[%emt 0:00:20] normal} 0-1

[Event "DVM U12w 2023"]
[Site "Magdeburg"]
[Date "2023.12.28"]
[Round "3"]
[White "Ulianova, Anna"]
[Black "Wieckowicz, Bui Havy"]
[Result "1-0"]
[WhiteElo "1036"]
[BlackElo "1175"]
[PlyCount "61"]
[EventDate "2022.12.27"]
[EventType "team-tourn"]
[EventRounds "7"]
[EventCountry "GER"]
[TimeControl "40/5400+30:1800+30"]
[WhiteClock "1:13:59"]
[BlackClock "0:52:25"]

1. e4 {[%emt 0:00:30]} c5 {[%emt 0:00:03]} 2. c3 {[%emt 0:00:00]} Nc6 {[%emt 0:00:08]} 3. d4 {[%emt 0:00:00]} cxd4 {[%emt 0:00:13]} 4. cxd4 {[%emt 0:00:05]} d6 {[%emt 0:00:30]} 5. Nf3 {[%emt 0:00:00]} Nf6 {[%emt 0:00:36]} 6. Nc3 {[%emt 0:00:18]} e6 {[%emt 0:00:32]} 7. Bd3 {[%emt 0:00:37]} Be7 {[%emt 0:00:26]} 8. Be3 {[%emt 0:01:07]} a6 {[%emt 0:00:16]} 9. h3 {[%emt 0:00:46]} Qc7 {[%emt 0:00:10]} 10. O-O {[%emt 0:00:20]} O-O {[%emt 0:00:12]} 11. Bc2 {[%emt 0:01:24]} b5 {[%emt 0:00:33]} 12. Ne2 {[%emt 0:00:52]} Bb7 {[%emt 0:03:42]} 13. Ng3 {[%emt 0:01:32]} Nb4 {[%emt 0:04:09]} 14. Bb1 {[%emt 0:01:27]} Rad8 {[%emt 0:02:27]} 15. a3 {[%emt 0:00:21]} Nc6 {[%emt 0:01:16]} 16. Qd3 {[%emt 0:00:34]} e5 {[%emt 0:01:49]} 17. d5 {[%emt 0:01:57]} Na5 {[%emt 0:01:30]} 18. Qd2 {[%emt 0:00:15]} Nb3 {[%emt 0:00:52]} 19. Qd1 {[%emt 0:00:51]} Nxa1 {[%emt 0:00:28]} 20. Nh2 {[%emt 0:02:08]} Rc8 {[%emt 0:02:15]} 21. Ng4 {[%emt 0:01:01]} Nc2 {[%emt 0:03:04]} 22. Nxf6+ {[%emt 0:00:23]} Bxf6 {[%emt 0:00:34]} 23. Bxc2 {[%emt 0:00:13]} Qxc2 {[%emt 0:00:40]} 24. Qg4 {[%emt 0:07:13]} g6 {[%emt 0:00:12]} 25. f4 {[%emt 0:00:39]} Qxb2 {[%emt 0:02:23]} 26. Nh5 {[%emt 0:01:00]} Bg7 {[%emt 0:00:19]} 27. f5 {[%emt 0:00:32]} Rb8 {[%emt 0:02:25]} 28. f6 {[%emt 0:01:53]} Bc8 {[%emt 0:00:59]} 29. Qh4 {[%emt 0:02:51]} gxh5 {[%emt 0:01:47]} 30. Qg5 {[%emt 0:00:26]} Re8 {[%emt 0:18:35]} 31. Qxg7# {[%emt 0:00:46] normal} 1-0

[Event "DVM U12w 2023"]
[Site "Magdeburg"]
[Date "2023.12.28"]
[Round "3"]
[White "Funke, Luise"]
[Black "Cao, Weiqi"]
[Result "0-1"]
[WhiteElo "1018"]
[BlackElo "1191"]
[PlyCount "122"]
[EventDate "2022.12.27"]
[EventType "team-tourn"]
[EventRounds "7"]
[EventCountry "GER"]
[TimeControl "40/5400+30:1800+30"]
[WhiteClock "0:14:00"]
[BlackClock "0:43:41"]

1. e4 {[%emt 0:00:02]} d5 {[%emt 0:00:07]} 2. exd5 {[%emt 0:00:09]} Qxd5 {[%emt 0:00:07]} 3. Nc3 {[%emt 0:00:10]} Qd6 {[%emt 0:00:10]} 4. Nf3 {[%emt 0:00:26]} c6 {[%emt 0:00:21]} 5. d4 {[%emt 0:01:06]} Nf6 {[%emt 0:00:29]} 6. Bc4 {[%emt 0:03:17]} Bg4 {[%emt 0:01:37]} 7. Bg5 {[%emt 0:01:25]} Nbd7 {[%emt 0:02:14]} 8. Qd3 {[%emt 0:03:38]} e6 {[%emt 0:02:45]} 9. O-O-O {[%emt 0:06:15]} Be7 {[%emt 0:01:39]} 10. h3 {[%emt 0:09:48]} Bh5 {[%emt 0:02:01]} 11. g4 {[%emt 0:00:39]} Bg6 {[%emt 0:00:35]} 12. Qe3 {[%emt 0:00:48]} Nb6 {[%emt 0:01:27]} 13. Bd3 {[%emt 0:03:23]} Nbd5 {[%emt 0:05:03]} 14. Nxd5 {[%emt 0:02:37]} Nxd5 {[%emt 0:00:56]} 15. Qd2 {[%emt 0:01:49]} Bxd3 {[%emt 0:01:34]} 16. Bxe7 {[%emt 0:01:39]} Nxe7 {[%emt 0:03:21]} 17. Qxd3 {[%emt 0:00:15]} Qf4+ {[%emt 0:01:22]} 18. Kb1 {[%emt 0:02:05]} O-O {[%emt 0:02:57]} 19. Ne5 {[%emt 0:02:29]} Qxf2 {[%emt 0:01:33]} 20. Rd2 {[%emt 0:02:56]} Qf4 {[%emt 0:02:23]} 21. Rf1 {[%emt 0:05:07]} Qg5 {[%emt 0:01:52]} 22. Rh2 {[%emt 0:03:20]} Nd5 {[%emt 0:01:52]} 23. h4 {[%emt 0:01:19]} Qd8 {[%emt 0:02:09]} 24. h5 {[%emt 0:04:09]} h6 {[%emt 0:01:55]} 25. Nf3 {[%emt 0:02:30]} Nb4 {[%emt 0:02:17]} 26. Qd2 {[%emt 0:01:10]} a5 {[%emt 0:04:13]} 27. g5 {[%emt 0:00:24]} hxg5 {[%emt 0:01:31]} 28. Nxg5 {[%emt 0:00:11]} Qd5 {[%emt 0:02:16]} 29. b3 {[%emt 0:01:37]} f6 {[%emt 0:02:35]} 30. Nf3 {[%emt 0:04:21]} Qb5 {[%emt 0:02:19]} 31. Rg1 {[%emt 0:02:50]} Qd5 {[%emt 0:01:17]} 32. Qg2 {[%emt 0:00:47]} Rf7 {[%emt 0:02:14]} 33. h6 {[%emt 0:00:36]} g5 {[%emt 0:01:08]} 34. Rgh1 {[%emt 0:04:32]} Qf5 {[%emt 0:01:13]} 35. h7+ {[%emt 0:01:02]} Kh8 {[%emt 0:02:39]} 36. Rh6 {[%emt 0:12:13]} Rd8 {[%emt 0:03:18]} 37. a3 {[%emt 0:03:05]} Nd5 {[%emt 0:00:39]} 38. Ne1 {[%emt 0:01:37]} Ne3 {[%emt 0:01:33]} 39. Qh2 {[%emt 0:00:16]} Ng4 {[%emt 0:00:22]} 40. Qh5 {[%emt 0:01:40]} Nxh6 {[%emt 0:00:27]} 41. Qxh6 {[%emt 0:30:29]} Rxh7 {[%emt 0:31:36]} 42. Qxh7+ {[%emt 0:03:19]} Qxh7 {[%emt 0:00:20]} 43. Rxh7+ {[%emt 0:00:08]} Kxh7 {[%emt 0:00:04]} 44. c3 {[%emt 0:00:31]} c5 {[%emt 0:00:17]} 45. Nf3 {[%emt 0:00:33]} cxd4 {[%emt 0:00:35]} 46. Nxd4 {[%emt 0:00:12]} Rxd4 {[%emt 0:00:52]} 47. cxd4 {[%emt 0:00:10]} g4 {[%emt 0:00:04]} 48. Kc2 {[%emt 0:00:22]} g3 {[%emt 0:00:06]} 49. Kc3 {[%emt 0:00:28]} g2 {[%emt 0:00:08]} 50. Kc4 {[%emt 0:00:15]} g1=Q {[%emt 0:00:08]} 51. Kb5 {[%emt 0:00:28]} Qxd4 {[%emt 0:00:11]} 52. Kxa5 {[%emt 0:00:15]} Qc5+ {[%emt 0:00:08]} 53. Ka4 {[%emt 0:00:23]} b5+ {[%emt 0:00:49]} 54. Ka5 {[%emt 0:00:08]} b4+ {[%emt 0:00:19]} 55. Ka4 {[%emt 0:00:14]} bxa3 {[%emt 0:00:22]} 56. b4 {[%emt 0:00:07]} Qc3 {[%emt 0:00:22]} 57. b5 {[%emt 0:00:22]} a2 {[%emt 0:00:12]} 58. b6 {[%emt 0:00:14]} a1=R+ {[%emt 0:00:06]} 59. Kb5 {[%emt 0:00:00]} Rb1+ {[%emt 0:00:00]} 60. Ka6 {[%emt 0:00:11]} Qc8+ {[%emt 0:00:00]} 61. Ka5 {[%emt 0:00:29]} Qa8# {[%emt 0:00:10] normal} 0-1

[Event "DVM U12w 2023"]
[Site "Magdeburg"]
[Date "2023.12.28"]
[Round "3"]
[White "Nikitina, Alisa"]
[Black "Strahl, Nele"]
[Result "1-0"]
[WhiteElo "1004"]
[BlackElo "783"]
[PlyCount "41"]
[EventDate "2022.12.27"]
[EventType "team-tourn"]
[EventRounds "7"]
[EventCountry "GER"]
[TimeControl "40/5400+30:1800+30"]
[WhiteClock "1:22:20"]
[BlackClock "1:23:18"]

1. e4 {[%emt 0:00:02]} e5 {[%emt 0:00:04]} 2. Nf3 {[%emt 0:00:06]} Nc6 {[%emt 0:00:07]} 3. Bc4 {[%emt 0:00:07]} Bc5 {[%emt 0:00:07]} 4. Nxe5 {[%emt 0:00:39]} Nxe5 {[%emt 0:00:41]} 5. d4 {[%emt 0:00:12]} Nxc4 {[%emt 0:00:17]} 6. dxc5 {[%emt 0:00:05]} Nf6 {[%emt 0:00:27]} 7. Bg5 {[%emt 0:00:09]} O-O {[%emt 0:00:28]} 8. Nc3 {[%emt 0:00:12]} c6 {[%emt 0:00:46]} 9. O-O {[%emt 0:00:10]} Nxb2 {[%emt 0:02:43]} 10. Qf3 {[%emt 0:01:44]} Kh8 {[%emt 0:01:09]} 11. e5 {[%emt 0:01:03]} Nc4 {[%emt 0:01:59]} 12. exf6 {[%emt 0:00:58]} Ne5 {[%emt 0:00:59]} 13. Qf4 {[%emt 0:03:13]} Re8 {[%emt 0:00:42]} 14. fxg7+ {[%emt 0:00:36]} Kxg7 {[%emt 0:00:24]} 15. Bxd8 {[%emt 0:00:09]} Rxd8 {[%emt 0:01:12]} 16. Qg5+ {[%emt 0:02:02]} Ng6 {[%emt 0:00:58]} 17. Qxd8 {[%emt 0:00:21]} d5 {[%emt 0:02:03]} 18. Ne2 {[%emt 0:03:08]} a6 {[%emt 0:00:55]} 19. g3 {[%emt 0:02:02]} b5 {[%emt 0:00:31]} 20. Nd4 {[%emt 0:00:53]} a5 {[%emt 0:00:40]} 21. Nxc6 {[%emt 0:00:49] normal} 1-0

[Event "DVM U12w 2023"]
[Site "Magdeburg"]
[Date "2023.12.28"]
[Round "3"]
[White "Martin, Helene"]
[Black "Yamshchikova, Oleksandra"]
[Result "1-0"]
[WhiteElo "989"]
[BlackElo "956"]
[PlyCount "75"]
[EventDate "2022.12.27"]
[EventType "team-tourn"]
[EventRounds "7"]
[EventCountry "GER"]
[TimeControl "40/5400+30:1800+30"]
[WhiteClock "0:32:46"]
[BlackClock "1:25:19"]

1. e4 {[%emt 0:00:02]} e5 {[%emt 0:00:06]} 2. Nf3 {[%emt 0:00:04]} Nc6 {[%emt 0:00:08]} 3. Bc4 {[%emt 0:00:08]} Bc5 {[%emt 0:00:12]} 4. c3 {[%emt 0:00:13]} d6 {[%emt 0:00:08]} 5. d3 {[%emt 0:00:05]} Nf6 {[%emt 0:00:42]} 6. O-O {[%emt 0:00:18]} O-O {[%emt 0:00:14]} 7. Be3 {[%emt 0:00:09]} Bb6 {[%emt 0:00:03]} 8. b4 {[%emt 0:00:39]} a6 {[%emt 0:00:12]} 9. Nbd2 {[%emt 0:00:12]} Ne7 {[%emt 0:00:12]} 10. Qc2 {[%emt 0:03:02]} Ng6 {[%emt 0:00:18]} 11. Rfe1 {[%emt 0:08:43]} c5 {[%emt 0:00:30]} 12. a3 {[%emt 0:01:46]} a5 {[%emt 0:00:18]} 13. b5 {[%emt 0:01:44]} d5 {[%emt 0:00:29]} 14. exd5 {[%emt 0:00:58]} Nxd5 {[%emt 0:01:40]} 15. a4 {[%emt 0:02:41]} Nf6 {[%emt 0:01:09]} 16. Ne4 {[%emt 0:04:25]} Nxe4 {[%emt 0:01:01]} 17. dxe4 {[%emt 0:00:20]} Qc7 {[%emt 0:01:26]} 18. Rad1 {[%emt 0:01:34]} Rd8 {[%emt 0:00:50]} 19. Rd2 {[%emt 0:01:29]} Bg4 {[%emt 0:01:12]} 20. Be2 {[%emt 0:01:01]} Rxd2 {[%emt 0:01:05]} 21. Bxd2 {[%emt 0:09:03]} Rd8 {[%emt 0:00:29]} 22. c4 {[%emt 0:10:50]} Rd7 {[%emt 0:00:42]} 23. Rd1 {[%emt 0:02:39]} Qd8 {[%emt 0:00:00]} 24. Kf1 {[%emt 0:00:07]} Rd6 {[%emt 0:02:57]} 25. Bc3 {[%emt 0:00:42]} Rxd1+ {[%emt 0:01:21]} 26. Qxd1 {[%emt 0:01:15]} Qc7 {[%emt 0:01:04]} 27. h3 {[%emt 0:09:22]} Bxf3 {[%emt 0:00:47]} 28. Bxf3 {[%emt 0:00:22]} h6 {[%emt 0:00:51]} 29. Qd2 {[%emt 0:07:20]} Kh7 {[%emt 0:00:39]} 30. Bg4 {[%emt 0:01:36]} Qd8 {[%emt 0:01:00]} 31. Qxd8 {[%emt 0:00:18]} Bxd8 {[%emt 0:00:07]} 32. Bf5 {[%emt 0:00:26]} b6 {[%emt 0:00:04]} 33. Bxe5 {[%emt 0:00:24]} Kh8 {[%emt 0:00:29]} 34. Bxg6 {[%emt 0:01:31]} fxg6 {[%emt 0:00:24]} 35. Ke2 {[%emt 0:00:08]} Kh7 {[%emt 0:00:28]} 36. Bd6 {[%emt 0:00:20]} h5 {[%emt 0:00:06]} 37. e5 {[%emt 0:00:20]} Kg8 {[%emt 0:00:18]} 38. e6 {[%emt 0:00:28] normal} 1-0

[Event "DVM U12w 2023"]
[Site "Magdeburg"]
[Date "2023.12.28"]
[Round "3"]
[White "Khachaturyan, Viktoria"]
[Black "Korwitz, Pauline"]
[Result "0-1"]
[WhiteElo "987"]
[BlackElo "1219"]
[PlyCount "100"]
[EventDate "2022.12.27"]
[EventType "team-tourn"]
[EventRounds "7"]
[EventCountry "GER"]
[TimeControl "40/5400+30:1800+30"]
[WhiteClock "1:14:41"]
[BlackClock "0:25:26"]

1. e4 {[%emt 0:00:01]} c5 {[%emt 0:00:08]} 2. d4 {[%emt 0:00:05]} cxd4 {[%emt 0:00:22]} 3. Qxd4 {[%emt 0:00:29]} Nc6 {[%emt 0:00:13]} 4. Qc4 {[%emt 0:00:32]} e6 {[%emt 0:01:30]} 5. Bf4 {[%emt 0:00:53]} Nf6 {[%emt 0:03:14]} 6. Nc3 {[%emt 0:00:21]} Bb4 {[%emt 0:01:40]} 7. O-O-O {[%emt 0:00:21]} O-O {[%emt 0:01:24]} 8. a3 {[%emt 0:02:38]} Bxc3 {[%emt 0:01:10]} 9. Qxc3 {[%emt 0:00:49]} Nxe4 {[%emt 0:02:23]} 10. Qe3 {[%emt 0:01:03]} d5 {[%emt 0:05:06]} 11. Bd3 {[%emt 0:00:59]} Nf6 {[%emt 0:01:45]} 12. Qg3 {[%emt 0:01:23]} Ne8 {[%emt 0:02:49]} 13. Qh3 {[%emt 0:00:45]} f5 {[%emt 0:05:56]} 14. Nf3 {[%emt 0:01:04]} Nf6 {[%emt 0:06:18]} 15. Bg5 {[%emt 0:02:18]} h6 {[%emt 0:07:09]} 16. Bxh6 {[%emt 0:00:50]} gxh6 {[%emt 0:00:42]} 17. Qxh6 {[%emt 0:00:09]} Qe7 {[%emt 0:00:41]} 18. Rhe1 {[%emt 0:01:38]} Qg7 {[%emt 0:01:13]} 19. Qh4 {[%emt 0:01:20]} Qg4 {[%emt 0:04:49]} 20. Qh6 {[%emt 0:00:53]} Qh5 {[%emt 0:03:58]} 21. Qf4 {[%emt 0:01:08]} Qf7 {[%emt 0:01:45]} 22. Re3 {[%emt 0:01:34]} Ne4 {[%emt 0:02:58]} 23. Bxe4 {[%emt 0:02:51]} fxe4 {[%emt 0:00:46]} 24. Qg5+ {[%emt 0:01:15]} Qg7 {[%emt 0:01:56]} 25. Qh5 {[%emt 0:00:47]} exf3 {[%emt 0:01:06]} 26. Rdd3 {[%emt 0:01:03]} fxg2 {[%emt 0:04:52]} 27. Rg3 {[%emt 0:00:22]} g1=Q+ {[%emt 0:00:24]} 28. Rd1 {[%emt 0:02:13]} Q1xg3 {[%emt 0:02:59]} 29. hxg3 {[%emt 0:00:39]} Rxf2 {[%emt 0:03:06]} 30. Rh1 {[%emt 0:00:51]} Nd4 {[%emt 0:02:14]} 31. Rh4 {[%emt 0:00:40]} Rf1+ {[%emt 0:01:56]} 32. Kd2 {[%emt 0:00:18]} Nf3+ {[%emt 0:01:02]} 33. Ke2 {[%emt 0:00:48]} Nxh4 {[%emt 0:00:54]} 34. Kxf1 {[%emt 0:00:20]} Qf6+ {[%emt 0:00:38]} 35. Kg1 {[%emt 0:00:28]} Qd4+ {[%emt 0:02:24]} 36. Kh2 {[%emt 0:00:52]} Qf2+ {[%emt 0:04:56]} 37. Kh3 {[%emt 0:00:31]} e5+ {[%emt 0:00:37]} 38. Kxh4 {[%emt 0:00:17]} Qh2+ {[%emt 0:00:09]} 39. Kg5 {[%emt 0:00:10]} Qxh5+ {[%emt 0:00:14]} 40. Kxh5 {[%emt 0:01:12]} Kg7 {[%emt 0:00:24]} 41. Kg5 {[%emt 0:30:20]} Bd7 {[%emt 0:30:24]} 42. g4 {[%emt 0:01:30]} Bxg4 {[%emt 0:00:13]} 43. Kxg4 {[%emt 0:00:07]} Rf8 {[%emt 0:00:07]} 44. Kg3 {[%emt 0:00:16]} e4 {[%emt 0:00:10]} 45. b4 {[%emt 0:00:15]} e3 {[%emt 0:00:05]} 46. a4 {[%emt 0:00:35]} e2 {[%emt 0:00:05]} 47. b5 {[%emt 0:00:06]} e1=Q+ {[%emt 0:00:15]} 48. Kg2 {[%emt 0:00:10]} Qf2+ {[%emt 0:00:29]} 49. Kh3 {[%emt 0:00:25]} Qg1 {[%emt 0:00:14]} 50. b6 {[%emt 0:00:15]} Rh8# {[%emt 0:00:12] normal} 0-1

[Event "DVM U12w 2023"]
[Site "Magdeburg"]
[Date "2023.12.28"]
[Round "3"]
[White "Schmegel, Alina"]
[Black "Trush, Diana"]
[Result "1-0"]
[WhiteElo "892"]
[BlackElo "980"]
[PlyCount "83"]
[EventDate "2022.12.27"]
[EventType "team-tourn"]
[EventRounds "7"]
[EventCountry "GER"]
[TimeControl "40/5400+30:1800+30"]
[WhiteClock "1:25:54"]
[BlackClock "1:10:26"]

1. e4 {[%emt 0:00:01]} c5 {[%emt 0:00:02]} 2. Nf3 {[%emt 0:00:21]} g6 {[%emt 0:00:19]} 3. Bb5 {[%emt 0:00:18]} Bg7 {[%emt 0:01:10]} 4. Nc3 {[%emt 0:00:27]} a6 {[%emt 0:00:17]} 5. Ba4 {[%emt 0:00:04]} b5 {[%emt 0:00:24]} 6. Bb3 {[%emt 0:00:12]} c4 {[%emt 0:00:06]} 7. d3 {[%emt 0:01:14]} cxb3 {[%emt 0:00:07]} 8. axb3 {[%emt 0:00:34]} Nc6 {[%emt 0:00:10]} 9. d4 {[%emt 0:01:28]} d6 {[%emt 0:08:15]} 10. Bg5 {[%emt 0:00:27]} h6 {[%emt 0:01:19]} 11. Bh4 {[%emt 0:00:13]} Qb6 {[%emt 0:01:58]} 12. Nd5 {[%emt 0:01:23]} Qa7 {[%emt 0:00:22]} 13. O-O {[%emt 0:00:27]} Nxd4 {[%emt 0:00:49]} 14. Nxd4 {[%emt 0:00:22]} Bxd4 {[%emt 0:00:07]} 15. c3 {[%emt 0:00:47]} Bg7 {[%emt 0:00:40]} 16. c4 {[%emt 0:02:25]} bxc4 {[%emt 0:00:31]} 17. bxc4 {[%emt 0:00:10]} Rb8 {[%emt 0:00:10]} 18. Qa4+ {[%emt 0:00:14]} Bd7 {[%emt 0:00:15]} 19. Qc2 {[%emt 0:01:27]} Bxb2 {[%emt 0:00:44]} 20. Rab1 {[%emt 0:00:25]} Bg7 {[%emt 0:00:09]} 21. Rxb8+ {[%emt 0:00:55]} Qxb8 {[%emt 0:00:02]} 22. Rb1 {[%emt 0:00:12]} Qc8 {[%emt 0:02:59]} 23. Nb6 {[%emt 0:00:34]} Qc6 {[%emt 0:00:57]} 24. Nxd7 {[%emt 0:00:34]} Kxd7 {[%emt 0:00:08]} 25. c5 {[%emt 0:01:01]} Nf6 {[%emt 0:09:12]} 26. e5 {[%emt 0:00:18]} dxe5 {[%emt 0:00:09]} 27. Qd3+ {[%emt 0:00:09]} Nd5 {[%emt 0:00:23]} 28. Ra1 {[%emt 0:00:29]} Ra8 {[%emt 0:00:51]} 29. Re1 {[%emt 0:01:05]} Qxc5 {[%emt 0:00:22]} 30. h3 {[%emt 0:00:57]} f5 {[%emt 0:01:21]} 31. Kh1 {[%emt 0:00:44]} e6 {[%emt 0:00:39]} 32. Bg3 {[%emt 0:01:33]} f4 {[%emt 0:00:13]} 33. Bh4 {[%emt 0:00:13]} g5 {[%emt 0:00:09]} 34. Qg6 {[%emt 0:00:18]} Bh8 {[%emt 0:00:44]} 35. Qf7+ {[%emt 0:00:09]} Ne7 {[%emt 0:00:15]} 36. Rd1+ {[%emt 0:00:09]} Kc6 {[%emt 0:00:30]} 37. Qxe6+ {[%emt 0:00:11]} Kb7 {[%emt 0:00:59]} 38. Rd7+ {[%emt 0:00:27]} Kb8 {[%emt 0:00:54]} 39. Rxe7 {[%emt 0:00:25]} gxh4 {[%emt 0:01:09]} 40. Qg8+ {[%emt 0:00:10]} Qc8 {[%emt 0:00:17]} 41. Qb3+ {[%emt 0:31:10]} Qb7 {[%emt 0:30:27]} 42. Qxb7# {[%emt 0:00:54] normal} 1-0

[Event "DVM U12w 2023"]
[Site "Magdeburg"]
[Date "2023.12.28"]
[Round "3"]
[White "Gelbach, Julietta"]
[Black "Haas, Valentina"]
[Result "1-0"]
[WhiteElo "887"]
[BlackElo "1010"]
[PlyCount "149"]
[EventDate "2022.12.27"]
[EventType "team-tourn"]
[EventRounds "7"]
[EventCountry "GER"]
[TimeControl "40/5400+30:1800+30"]
[WhiteClock "1:03:44"]
[BlackClock "1:25:24"]

1. e4 {[%emt 0:00:01]} e5 {[%emt 0:00:06]} 2. Nf3 {[%emt 0:00:04]} Nf6 {[%emt 0:00:12]} 3. Bc4 {[%emt 0:00:10]} h6 {[%emt 0:01:04]} 4. Nc3 {[%emt 0:00:24]} Nxe4 {[%emt 0:00:20]} 5. Nxe4 {[%emt 0:00:16]} d5 {[%emt 0:00:08]} 6. Bxd5 {[%emt 0:01:54]} Qxd5 {[%emt 0:00:09]} 7. Nc3 {[%emt 0:00:40]} Qd8 {[%emt 0:00:09]} 8. O-O {[%emt 0:01:08]} Bd6 {[%emt 0:00:54]} 9. Re1 {[%emt 0:00:43]} O-O {[%emt 0:00:30]} 10. Nxe5 {[%emt 0:01:26]} Bxe5 {[%emt 0:00:10]} 11. Rxe5 {[%emt 0:00:06]} Re8 {[%emt 0:00:41]} 12. Rxe8+ {[%emt 0:01:21]} Qxe8 {[%emt 0:00:09]} 13. d4 {[%emt 0:00:26]} Bg4 {[%emt 0:00:30]} 14. Qd2 {[%emt 0:00:47]} Nc6 {[%emt 0:00:53]} 15. h3 {[%emt 0:00:32]} Bf5 {[%emt 0:01:16]} 16. Qf4 {[%emt 0:01:53]} Qd7 {[%emt 0:00:31]} 17. d5 {[%emt 0:04:58]} Ne7 {[%emt 0:00:37]} 18. Qe5 {[%emt 0:07:48]} Bxc2 {[%emt 0:01:52]} 19. Be3 {[%emt 0:02:23]} Ng6 {[%emt 0:00:45]} 20. Qd4 {[%emt 0:01:29]} Ne7 {[%emt 0:02:14]} 21. Rc1 {[%emt 0:00:48]} Nf5 {[%emt 0:00:27]} 22. Qd2 {[%emt 0:01:06]} Nxe3 {[%emt 0:01:09]} 23. Qxe3 {[%emt 0:01:02]} Re8 {[%emt 0:00:21]} 24. Qxa7 {[%emt 0:01:21]} Qd6 {[%emt 0:01:05]} 25. Qxb7 {[%emt 0:03:11]} Kh7 {[%emt 0:00:23]} 26. Qa7 {[%emt 0:03:10]} Re7 {[%emt 0:00:51]} 27. Qd4 {[%emt 0:01:12]} c6 {[%emt 0:00:28]} 28. a4 {[%emt 0:00:52]} cxd5 {[%emt 0:01:26]} 29. Qd2 {[%emt 0:03:09]} Be4 {[%emt 0:01:07]} 30. Nxe4 {[%emt 0:00:31]} Rxe4 {[%emt 0:00:16]} 31. Ra1 {[%emt 0:01:24]} d4 {[%emt 0:00:58]} 32. a5 {[%emt 0:00:24]} Re8 {[%emt 0:01:16]} 33. b4 {[%emt 0:02:06]} d3 {[%emt 0:00:05]} 34. a6 {[%emt 0:00:24]} Re2 {[%emt 0:00:21]} 35. Qd1 {[%emt 0:00:50]} Re8 {[%emt 0:00:32]} 36. a7 {[%emt 0:00:17]} Ra8 {[%emt 0:02:11]} 37. b5 {[%emt 0:00:28]} Kg6 {[%emt 0:01:21]} 38. Ra6 {[%emt 0:00:35]} Qxa6 {[%emt 1:22:03]} 39. bxa6 {[%emt 0:58:41]} Rxa7 {[%emt 0:00:30]} 40. Qxd3+ {[%emt 0:00:30]} f5 {[%emt 0:00:00]} 41. Qd6+ {[%emt 0:00:00]} Kh7 {[%emt 0:00:00]} 42. Qb6 {[%emt 0:00:00]} Ra8 {[%emt 0:00:00]} 43. a7 {[%emt 0:00:00]} h5 {[%emt 0:00:00]} 44. Qb7 {[%emt 0:00:00]} Rg8 {[%emt 0:00:00]} 45. a8=Q {[%emt 0:00:00]} Rxa8 {[%emt 0:00:00]} 46. Qxa8 {[%emt 0:00:00]} Kh6 {[%emt 0:00:00]} 47. Qa7 {[%emt 0:00:00]} g6 {[%emt 0:00:00]} 48. Qe3+ {[%emt 0:00:00]} Kh7 {[%emt 0:00:00]} 49. f3 {[%emt 0:00:00]} h4 {[%emt 0:00:00]} 50. g3 {[%emt 0:00:00]} hxg3 {[%emt 0:00:00]} 51. Kg2 {[%emt 0:00:00]} g5 {[%emt 0:00:00]} 52. Kxg3 {[%emt 0:00:00]} f4+ {[%emt 0:00:00]} 53. Qxf4 {[%emt 0:00:00]} gxf4+ {[%emt 0:00:00]} 54. Kxf4 {[%emt 0:00:00]} Kh6 {[%emt 0:00:00]} 55. Kg3 {[%emt 0:00:00]} Kg5 {[%emt 0:00:00]} 56. h4+ {[%emt 0:00:00]} Kg6 {[%emt 0:00:00]} 57. Kg4 {[%emt 0:00:00]} Kf6 {[%emt 0:00:00]} 58. f4 {[%emt 0:00:00]} Kg6 {[%emt 0:00:00]} 59. h5+ {[%emt 0:00:00]} Kf6 {[%emt 0:00:00]} 60. f5 {[%emt 0:00:00]} Kg7 {[%emt 0:00:00]} 61. Kg5 {[%emt 0:00:00]} Kf7 {[%emt 0:00:00]} 62. f6 {[%emt 0:00:00]} Kg8 {[%emt 0:00:00]} 63. Kf5 {[%emt 0:00:00]} Kf7 {[%emt 0:00:00]} 64. h6 {[%emt 0:00:00]} Kg8 {[%emt 0:00:00]} 65. Kg6 {[%emt 0:00:00]} Kf8 {[%emt 0:00:00]} 66. h7 {[%emt 0:00:00]} Ke8 {[%emt 0:00:00]} 67. h8=Q+ {[%emt 0:00:00]} Kd7 {[%emt 0:00:00]} 68. f7 {[%emt 0:00:00]} Ke6 {[%emt 0:00:00]} 69. f8=Q {[%emt 0:00:00]} Kd5 {[%emt 0:00:00]} 70. Qe8 {[%emt 0:00:00]} Kd6 {[%emt 0:00:00]} 71. Qh7 {[%emt 0:00:00]} Kd5 {[%emt 0:00:00]} 72. Qhd7+ {[%emt 0:00:00]} Kc5 {[%emt 0:00:00]} 73. Qec8+ {[%emt 0:00:00]} Kb6 {[%emt 0:00:00]} 74. Qdb7+ {[%emt 0:00:00]} Ka5 {[%emt 0:00:00]} 75. Qca8# {[%emt 0:00:00] normal} 1-0